bitfinex-derivatives/quotes_BTCF0:USTF0_20250918
["timestamp","ask_amount","ask_price","bid_price","bid_amount"]
[1758165587467,1.06234987,117690.0,117680.0,1.27317974]
[1758165587776,1.06234987,117690.0,117680.0,1.01534987]
[1758165588375,0.80452,117690.0,117680.0,1.27317974]
[1758165588773,1.06234987,117690.0,117680.0,1.27317974]
[1758165588974,0.80452,117690.0,117680.0,1.27317974]
[1758165590274,1.06234987,117690.0,117680.0,1.27317974]
[1758165591174,1.08540987,117690.0,117680.0,0.75752]
[1758165591372,1.08540987,117690.0,117680.0,1.01534987]
[1758165591569,1.06234987,117690.0,117680.0,1.01534987]
[1758165591772,0.80452,117690.0,117680.0,1.01493024]
[1758165592364,0.82317813,117690.0,117680.0,1.01493024]
[1758165592876,0.02365813,117690.0,117680.0,1.01493024]
[1758165593176,0.8044,117690.0,117680.0,1.26493024]
[1758165593374,0.0236833,117690.0,117680.0,1.26493024]
[1758165593571,0.0001,117700.0,117680.0,2.55667138]
[1758165593776,0.0001,117700.0,117690.0,0.91100048]
[1758165594073,0.7994,117710.0,117700.0,0.03538]
[1758165594074,2.2995,117710.0,117700.0,0.03538]
[1758165594273,2.2995,117710.0,117700.0,0.65359024]
[1758165594274,1.5,117710.0,117700.0,0.65359024]
[1758165594475,0.84525217,117720.0,117710.0,0.0132]
[1758165594677,1.10256241,117720.0,117710.0,0.39618]
[1758165595069,2.62562241,117720.0,117710.0,0.39618]
[1758165595375,1.12562241,117720.0,117710.0,0.39618]
[1758165595577,0.86821217,117720.0,117710.0,0.65359024]
[1758165595771,2.37121217,117720.0,117710.0,0.65359024]
[1758165595977,2.37421217,117720.0,117710.0,0.65359024]
[1758165597070,2.38254538,117720.0,117710.0,0.65359024]
[1758165597677,2.33675321,117720.0,117710.0,0.65359024]
[1758165598272,2.59416345,117720.0,117710.0,0.65359024]
[1758165598472,2.33675321,117720.0,117710.0,0.65359024]
[1758165599671,2.59416345,117720.0,117710.0,0.39618]
[1758165600178,2.59416345,117720.0,117710.0,0.65359024]
[1758165600586,2.33675321,117720.0,117710.0,0.39618]
[1758165600880,2.59416345,117720.0,117710.0,0.39618]
[1758165601082,3.11507369,117720.0,117710.0,0.38298]
[1758165601375,1.61207369,117720.0,117710.0,0.38298]
[1758165601575,1.61207369,117720.0,117700.0,0.3609]
[1758165601781,0.03549321,117720.0,117710.0,0.3961]
[1758165601983,1.08896345,117720.0,117710.0,0.3961]
[1758165602277,1.60987369,117720.0,117710.0,0.38246]
[1758165602483,0.0354,117710.0,117700.0,0.3609]
[1758165602670,0.0219,117710.0,117700.0,0.7569]
[1758165602876,0.27931024,117710.0,117700.0,0.7569]
[1758165603773,1.08150345,117720.0,117700.0,1.01431024]
[1758165603774,0.01143321,117720.0,117700.0,1.01431024]
[1758165603973,0.82312,117720.0,117710.0,0.3961]
[1758165604176,0.82302,117720.0,117710.0,0.65351024]
[1758165604372,1.07843024,117720.0,117710.0,0.3961]
[1758165604581,0.0001,117730.0,117720.0,0.0353]
[1758165604873,0.0001,117740.0,117730.0,0.0353]
[1758165605073,0.0219,117740.0,117730.0,0.65351024]
[1758165605281,1.07853024,117750.0,117740.0,0.0353]
[1758165605477,1.07843024,117750.0,117740.0,0.3961]
[1758165605676,1.09702551,117750.0,117740.0,0.3961]
[1758165605874,0.83961527,117750.0,117740.0,0.65351024]
[1758165606579,0.84261527,117750.0,117740.0,0.3961]
[1758165606772,0.82071527,117750.0,117740.0,0.65351024]
[1758165606976,0.84261527,117750.0,117740.0,0.3961]
[1758165607178,2.60002551,117750.0,117740.0,0.3961]
[1758165607681,2.34261527,117750.0,117740.0,0.65351024]
[1758165607982,2.34361527,117750.0,117740.0,0.65351024]
[1758165608178,0.004,117750.0,117740.0,0.65351024]
[1758165608481,0.80304,117750.0,117740.0,0.65351024]
[1758165608872,0.004,117750.0,117740.0,0.3961]
[1758165609083,0.004,117750.0,117740.0,0.65351024]
[1758165609282,0.004,117750.0,117740.0,0.90351024]
[1758165609877,0.004,117750.0,117740.0,1.77251024]
[1758165610071,0.004,117750.0,117740.0,2.27251024]
[1758165610481,0.004,117750.0,117740.0,2.53251024]
[1758165610682,0.003,117750.0,117740.0,2.53251024]
[1758165611685,0.003,117750.0,117740.0,2.60182157]
[1758165613186,0.003,117750.0,117740.0,2.60170157]
[1758165613885,0.002,117750.0,117740.0,2.60170157]
[1758165614980,0.001,117750.0,117740.0,1.80282157]
[1758165615181,0.0229,117750.0,117740.0,1.45231024]
[1758165615377,0.001,117750.0,117740.0,1.45231024]
[1758165617189,0.001,117750.0,117740.0,1.1949]
[1758165617488,0.001,117750.0,117740.0,1.45231024]
[1758165617982,0.001,117750.0,117740.0,1.45223024]
[1758165618589,0.001,117750.0,117740.0,1.47231219]
[1758165619287,0.001,117750.0,117740.0,1.54104243]
[1758165619676,0.001,117750.0,117740.0,2.08231219]
[1758165619878,0.001,117750.0,117740.0,2.61972243]
[1758165620281,0.001,117750.0,117740.0,2.86972243]
[1758165620478,0.01890583,117770.0,117750.0,0.0353]
[1758165620685,0.01890583,117770.0,117760.0,1.81295024]
[1758165621591,1.5,117780.0,117770.0,0.0353]
[1758165621788,1.5,117780.0,117770.0,0.65351024]
[1758165623089,0.79889548,117790.0,117780.0,0.0353]
[1758165623290,0.79889548,117790.0,117780.0,0.65351024]
[1758165623692,0.82079548,117790.0,117780.0,0.65351024]
[1758165623881,0.82075548,117790.0,117780.0,0.65351024]
[1758165624387,2.32075548,117790.0,117780.0,0.65351024]
[1758165624692,2.32171548,117790.0,117780.0,0.65351024]
[1758165624897,2.59768736,117790.0,117780.0,0.3961]
[1758165625088,2.61118736,117790.0,117780.0,0.38246]
[1758165625595,2.34027712,117790.0,117780.0,0.3961]
[1758165625892,2.59968736,117790.0,117780.0,0.3961]
[1758165627187,2.58112572,117790.0,117780.0,0.65351024]
[1758165627389,2.58104572,117790.0,117780.0,0.65351024]
[1758165627583,1.78260572,117790.0,117780.0,0.65351024]
[1758165627792,2.58104572,117790.0,117780.0,0.65351024]
[1758165628194,2.59454572,117790.0,117780.0,0.65351024]
[1758165628595,2.59454572,117790.0,117780.0,0.3961]
[1758165629399,2.59454572,117790.0,117780.0,0.65351024]
[1758165629697,2.61312619,117790.0,117780.0,0.38246]
[1758165630300,1.81468619,117790.0,117780.0,0.38246]
[1758165630499,2.61304619,117790.0,117780.0,0.38246]
[1758165630792,2.35563595,117790.0,117780.0,0.38246]
[1758165630998,2.61304619,117790.0,117780.0,0.38246]
[1758165632594,2.86304619,117790.0,117780.0,0.38246]
[1758165632796,2.86304619,117790.0,117780.0,0.3608]
[1758165633099,0.03437,117780.0,117770.0,0.3831]
[1758165633296,0.31036071,117780.0,117770.0,0.383]
[1758165633693,0.05295047,117780.0,117770.0,0.39699]
[1758165633895,0.31036071,117780.0,117770.0,0.39699]
[1758165634094,0.04025047,117780.0,117770.0,0.65440024]
[1758165634693,0.04125047,117780.0,117770.0,0.65440024]
[1758165635600,0.04425047,117780.0,117770.0,0.65440024]
[1758165639896,0.04425047,117780.0,117770.0,0.39699]
[1758165640097,0.04425047,117780.0,117770.0,0.65440024]
[1758165640804,0.04425047,117780.0,117770.0,0.39699]
[1758165641004,0.04425047,117780.0,117770.0,0.65440024]
[1758165643011,0.02258047,117780.0,117770.0,0.65440024]
[1758165643200,0.04425047,117780.0,117770.0,0.65440024]
[1758165644607,0.02258047,117780.0,117770.0,0.65440024]
[1758165644802,0.04425047,117780.0,117770.0,0.65440024]
[1758165646495,0.04425047,117780.0,117770.0,0.39699]
[1758165646701,0.04425047,117780.0,117770.0,0.65440024]
[1758165647708,1.54425047,117780.0,117770.0,0.65440024]
[1758165650811,1.54425047,117780.0,117770.0,0.39699]
[1758165651214,1.54425047,117780.0,117770.0,0.65440024]
[1758165651512,2.34213047,117780.0,117770.0,0.65440024]
[1758165652019,2.34213047,117780.0,117770.0,0.39699]
[1758165652311,2.34213047,117780.0,117770.0,0.65440024]
[1758165653812,2.59917435,117780.0,117770.0,0.65403388]
[1758165655109,1.54425047,117780.0,117770.0,0.65403388]
[1758165655413,2.59909435,117780.0,117770.0,0.65403388]
[1758165655716,1.52258047,117780.0,117770.0,0.91107776]
[1758165656207,0.82034047,117780.0,117770.0,0.91107776]
[1758165656406,0.02258047,117780.0,117770.0,0.91107776]
[1758165656818,0.04425047,117780.0,117770.0,0.91107776]
[1758165657018,0.04425047,117780.0,117770.0,0.65403388]
[1758165657314,0.02258047,117780.0,117770.0,0.65403388]
[1758165657704,0.02158047,117780.0,117770.0,0.65403388]
[1758165657906,0.02058047,117780.0,117770.0,0.65403388]
[1758165658110,0.04325047,117780.0,117770.0,0.65403388]
[1758165659414,0.02467,117780.0,117770.0,0.65403388]
[1758165659617,0.04448143,117780.0,117770.0,0.65403388]
[1758165661013,0.30152531,117780.0,117770.0,0.65403388]
[1758165661414,0.04448143,117780.0,117770.0,0.65403388]
[1758165661617,0.30152531,117780.0,117770.0,0.65403388]
[1758165662117,0.04448143,117780.0,117770.0,0.65403388]
[1758165662315,0.02467,117780.0,117770.0,0.65403388]
[1758165662514,0.28171388,117780.0,117770.0,0.65403388]
[1758165662917,0.02467,117780.0,117770.0,0.65403388]
[1758165663519,0.28171388,117780.0,117770.0,0.65403388]
[1758165663912,0.57123886,117780.0,117770.0,0.39699]
[1758165664218,0.57123886,117780.0,117770.0,0.64004388]
[1758165664417,0.31419498,117780.0,117770.0,0.64004388]
[1758165664611,0.31419498,117780.0,117770.0,0.65282388]
[1758165664919,0.0444811,117780.0,117770.0,0.65282388]
[1758165665115,0.30152498,117780.0,117770.0,0.65282388]
[1758165665918,1.09916498,117780.0,117770.0,0.65282388]
[1758165666410,0.30152498,117780.0,117770.0,0.65282388]
[1758165666614,0.8421211,117780.0,117770.0,0.65282388]
[1758165666814,0.0444811,117780.0,117770.0,0.39578]
[1758165667123,1.09916498,117780.0,117770.0,0.65282388]
[1758165667321,0.8420811,117780.0,117770.0,0.65282388]
[1758165667514,1.09912498,117780.0,117770.0,0.65282388]
[1758165667709,0.8421211,117780.0,117770.0,0.39578]
[1758165667921,0.8184111,117780.0,117770.0,0.65282388]
[1758165668115,0.8174111,117780.0,117770.0,0.65382388]
[1758165668516,0.8174111,117780.0,117770.0,0.91086776]
[1758165668823,0.7976,117780.0,117770.0,0.91186776]
[1758165669017,0.81741198,117780.0,117770.0,0.91286776]
[1758165669319,0.81741198,117780.0,117770.0,0.65582388]
[1758165669519,0.81741198,117780.0,117770.0,0.39878]
[1758165669823,0.81741198,117780.0,117770.0,0.91286776]
[1758165670016,0.7976,117780.0,117770.0,0.91286776]
[1758165671624,1.50039548,117790.0,117770.0,0.91286776]
[1758165671822,0.01,117800.0,117780.0,1.25229074]
[1758165672120,0.02148,117830.0,117820.0,0.0355]
[1758165672319,0.02148,117830.0,117820.0,0.93047686]
[1758165672320,0.01980613,117830.0,117820.0,0.93047686]
[1758165672519,0.04128613,117830.0,117820.0,0.93047686]
[1758165672729,0.29831092,117830.0,117820.0,0.67343298]
[1758165672918,0.29831092,117830.0,117820.0,0.4163891]
[1758165673118,0.29831092,117830.0,117820.0,0.67343298]
[1758165673721,0.29831092,117830.0,117820.0,0.4163891]
[1758165673920,0.56098092,117830.0,117820.0,0.4163891]
[1758165674322,0.01267,117820.0,117810.0,0.3609]
[1758165674521,1.34571776,117820.0,117810.0,0.3608]
[1758165674726,1.3655048,117820.0,117810.0,0.3608]
[1758165675327,1.6155048,117820.0,117810.0,0.3608]
[1758165676628,1.6155048,117820.0,117810.0,0.38352]
[1758165676833,1.6155048,117820.0,117810.0,0.3608]
[1758165677026,1.6155048,117820.0,117810.0,0.38352]
[1758165677827,1.87254868,117820.0,117800.0,0.3609]
[1758165678022,1.15903776,117810.0,117800.0,0.0001]
[1758165678222,1.15903776,117810.0,117780.0,0.64056388]
[1758165678223,0.02148,117790.0,117780.0,0.64056388]
[1758165678421,0.7974,117810.0,117790.0,0.0355]
[1758165678625,0.81701287,117810.0,117800.0,1.24846776]
[1758165678926,0.01961287,117810.0,117800.0,1.24846776]
[1758165679129,0.81701287,117810.0,117800.0,1.24846776]
[1758165679428,1.05444388,117810.0,117800.0,1.24846776]
[1758165679623,0.7974,117810.0,117800.0,1.24846776]
[1758165679828,1.77952388,117820.0,117810.0,0.0355]
[1758165680030,2.5964925,117820.0,117810.0,0.65334388]
[1758165680823,2.5954925,117820.0,117810.0,0.65334388]
[1758165681133,2.5955325,117820.0,117810.0,0.3973]
[1758165681425,1.7981325,117820.0,117810.0,0.65434388]
[1758165681632,2.33844862,117820.0,117810.0,0.65434388]
[1758165681826,2.5954925,117820.0,117810.0,0.65434388]
[1758165682836,1.7981325,117820.0,117810.0,0.65434388]
[1758165683029,1.54108862,117820.0,117810.0,0.65434388]
[1758165683226,1.51960862,117820.0,117810.0,0.90434388]
[1758165683532,0.02148,117830.0,117820.0,0.0355]
[1758165683728,1.09553958,117830.0,117820.0,0.65334388]
[1758165683925,2.3384957,117830.0,117820.0,0.65334388]
[1758165684126,2.59553958,117830.0,117820.0,0.65334388]
[1758165684826,2.59653958,117830.0,117820.0,0.3963]
[1758165685025,2.59653958,117830.0,117820.0,0.65334388]
[1758165685220,1.79921958,117830.0,117820.0,0.65334388]
[1758165685432,2.59653958,117830.0,117820.0,0.65334388]
[1758165686131,1.79921958,117830.0,117820.0,0.65334388]
[1758165686331,2.59649958,117830.0,117820.0,0.3963]
[1758165686531,2.59649958,117830.0,117820.0,0.65334388]
[1758165686928,1.79921958,117830.0,117820.0,0.65434388]
[1758165687132,2.3394557,117830.0,117820.0,0.65434388]
[1758165687534,2.59649958,117830.0,117820.0,0.65534388]
[1758165687732,2.3384557,117830.0,117820.0,0.65534388]
[1758165688033,2.59549958,117830.0,117820.0,0.65534388]
[1758165688330,2.3384557,117830.0,117820.0,0.65534388]
[1758165688531,2.59549958,117830.0,117820.0,0.65534388]
[1758165689932,2.3384557,117830.0,117820.0,0.65534388]
[1758165690127,2.59549958,117830.0,117820.0,0.65534388]
[1758165692231,1.79821958,117830.0,117820.0,0.65534388]
[1758165692431,0.0196957,117830.0,117820.0,0.91238776]
[1758165692734,0.6886157,117830.0,117820.0,0.91238776]
[1758165692934,0.0196957,117830.0,117820.0,0.91238776]
[1758165693139,0.8393357,117830.0,117820.0,0.91238776]
[1758165695434,1.09637958,117830.0,117820.0,0.91238776]
[1758165695630,1.09637958,117830.0,117820.0,0.65534388]
[1758165695831,1.09637958,117830.0,117820.0,0.3983]
[1758165696030,1.09637958,117830.0,117820.0,0.65534388]
[1758165696731,0.8392957,117830.0,117820.0,0.91238776]
[1758165699944,0.8196,117830.0,117820.0,0.3983]
[1758165700136,0.8196,117830.0,117820.0,0.91238776]
[1758165701234,0.02248,117830.0,117820.0,0.91238776]
[1758165701432,0.0001,117840.0,117830.0,0.03557]
[1758165701638,0.81962,117850.0,117840.0,0.03557]
[1758165701840,0.83922389,117850.0,117840.0,0.91045776]
[1758165702138,2.33922389,117850.0,117840.0,0.91045776]
[1758165702335,2.59626777,117850.0,117840.0,0.91045776]
[1758165703438,1.09726777,117850.0,117840.0,0.91045776]
[1758165704338,0.84022389,117850.0,117840.0,0.91045776]
[1758165704937,1.09726777,117850.0,117840.0,0.91045776]
[1758165705137,0.84022389,117850.0,117840.0,0.91045776]
[1758165705349,1.09726777,117850.0,117840.0,0.91045776]
[1758165706138,1.09726777,117850.0,117840.0,0.65341388]
[1758165706540,0.84022389,117850.0,117840.0,0.65341388]
[1758165706742,1.09726777,117850.0,117840.0,0.65341388]
[1758165707748,1.09710777,117850.0,117840.0,0.65341388]
[1758165708842,0.30022777,117850.0,117840.0,0.65341388]
[1758165709048,1.09710777,117850.0,117840.0,0.65341388]
[1758165709547,0.04318389,117850.0,117840.0,0.91045776]
[1758165709746,1.07458777,117850.0,117840.0,0.91045776]
[1758165710146,1.09706777,117850.0,117840.0,0.91045776]
[1758165711245,0.02070389,117850.0,117840.0,0.91045776]
[1758165711749,0.001,117850.0,117840.0,1.16045776]
[1758165713552,0.001,117850.0,117840.0,1.26366989]
[1758165713749,0.001,117850.0,117840.0,1.71808363]
[1758165714051,0.001,117850.0,117840.0,1.45302895]
[1758165714244,0.02348,117850.0,117840.0,0.70302895]
[1758165714450,1.07685895,117850.0,117840.0,0.39637]
[1758165715143,1.36014176,117850.0,117840.0,0.3608]
[1758165715343,1.36014176,117850.0,117830.0,0.38329]
[1758165715344,0.03608,117840.0,117830.0,0.38329]
[1758165715543,0.31242176,117840.0,117830.0,0.38319]
[1758165715747,0.03608,117830.0,117820.0,0.39607]
[1758165715944,1.08941895,117830.0,117820.0,0.39597]
[1758165716144,1.08941895,117830.0,117820.0,0.38319]
[1758165716344,1.08276,117830.0,117820.0,0.38319]
[1758165716550,1.33941895,117830.0,117820.0,0.3608]
[1758165717842,1.33941895,117830.0,117820.0,0.3628]
[1758165719151,1.08941895,117830.0,117820.0,0.38519]
[1758165719352,1.08941895,117830.0,117820.0,0.39837]
[1758165719755,0.02248,117830.0,117820.0,0.65502895]
[1758165720051,0.02248,117830.0,117820.0,0.39837]
[1758165720052,1.07581895,117830.0,117820.0,0.39837]
[1758165721252,1.07577895,117830.0,117820.0,0.39837]
[1758165721852,1.08941895,117830.0,117820.0,0.39837]
[1758165724057,1.08941895,117830.0,117820.0,0.38519]
[1758165724254,1.08941895,117830.0,117820.0,0.3628]
[1758165724563,0.92328582,117830.0,117820.0,0.002]
[1758165724762,1.35908582,117830.0,117820.0,0.3628]
[1758165725260,1.97654477,117830.0,117810.0,0.0001]
[1758165725459,1.1241179,117820.0,117810.0,0.0001]
[1758165725650,1.14383001,117820.0,117800.0,0.0001]
[1758165725958,1.6707179,117810.0,117800.0,0.0001]
[1758165726158,1.6707179,117810.0,117790.0,0.01274]
[1758165726358,0.25665895,117800.0,117790.0,0.01274]
[1758165726554,1.1575,117810.0,117790.0,0.03442]
[1758165726753,0.3609,117810.0,117800.0,0.03442]
[1758165727060,1.05325895,117810.0,117800.0,0.39522]
[1758165727370,0.7966,117810.0,117800.0,0.39522]
[1758165727553,0.25675895,117820.0,117810.0,0.03442]
[1758165727861,0.3608,117830.0,117820.0,0.03442]
[1758165727862,0.25675895,117830.0,117820.0,0.03442]
[1758165728056,1.05325895,117830.0,117820.0,0.03442]
[1758165728761,1.4337412,117830.0,117820.0,0.03442]
[1758165729750,0.01968225,117830.0,117820.0,0.03442]
[1758165729951,0.06650261,117840.0,117830.0,0.03442]
[1758165730255,0.00859301,117850.0,117830.0,0.39522]
[1758165730454,0.01978302,117850.0,117840.0,0.03442]
[1758165730754,0.81632302,117850.0,117840.0,0.03442]
[1758165730956,0.82470447,117850.0,117840.0,0.03442]
[1758165731655,0.01968302,117850.0,117840.0,0.03442]
[1758165731862,0.81632302,117850.0,117840.0,0.03442]
[1758165732159,0.81732302,117850.0,117840.0,0.03442]
[1758165732963,0.81832302,117850.0,117840.0,0.03442]
[1758165733865,1.0974002,117850.0,117840.0,0.03442]
[1758165735764,0.81832302,117850.0,117840.0,0.03442]
[1758165736360,1.0974002,117850.0,117840.0,0.03442]
[1758165736559,0.81832302,117850.0,117840.0,0.03442]
[1758165737766,0.81820302,117850.0,117840.0,0.03442]
[1758165738564,0.02168302,117850.0,117840.0,0.03442]
[1758165738760,0.81816302,117850.0,117840.0,0.03442]
[1758165739363,0.02168302,117850.0,117840.0,0.03442]
[1758165739561,0.81816302,117850.0,117840.0,0.03442]
[1758165740768,0.02168302,117850.0,117840.0,0.03442]
[1758165740968,0.81812302,117850.0,117840.0,0.03442]
[1758165741671,0.81812302,117850.0,117840.0,0.39522]
[1758165741858,0.02168302,117850.0,117840.0,0.39522]
[1758165742272,0.81808302,117850.0,117840.0,0.39522]
[1758165742564,0.02168302,117850.0,117840.0,0.64522]
[1758165742769,0.81808302,117850.0,117840.0,0.92429718]
[1758165743072,0.02168302,117850.0,117840.0,0.92429718]
[1758165743270,0.81808302,117850.0,117840.0,0.64522]
[1758165743471,0.81808302,117850.0,117840.0,0.92429718]
[1758165744371,0.81808302,117850.0,117840.0,0.64522]
[1758165745972,0.81808302,117850.0,117840.0,0.92429718]
[1758165746171,0.7984,117850.0,117840.0,0.92429718]
[1758165747865,0.7984,117850.0,117840.0,0.64522]
[1758165749169,0.7974,117850.0,117840.0,0.64522]
[1758165749667,0.7974,117850.0,117840.0,0.92429718]
[1758165749872,0.001,117850.0,117840.0,0.92429718]
[1758165750267,0.00036645,117860.0,117850.0,0.01288]
[1758165750468,0.23466645,117860.0,117850.0,0.67433718]
[1758165751266,0.23466645,117860.0,117850.0,0.39526]
[1758165751672,0.23666645,117860.0,117850.0,0.39526]
[1758165751874,0.49337302,117860.0,117850.0,0.65196657]
[1758165752076,0.23666645,117860.0,117850.0,0.65196657]
[1758165752674,0.23766645,117860.0,117850.0,0.65196657]
[1758165753479,0.00326645,117860.0,117850.0,0.65196657]
[1758165753875,0.00326645,117860.0,117850.0,0.39526]
[1758165754176,1.50326645,117860.0,117850.0,0.65196657]
[1758165756573,1.75997302,117860.0,117850.0,0.65196657]
[1758165756873,1.50326645,117860.0,117850.0,0.65196657]
[1758165761474,1.50326645,117860.0,117850.0,0.39526]
[1758165761670,1.50326645,117860.0,117850.0,0.65196657]
[1758165763384,2.00997302,117860.0,117850.0,0.39526]
[1758165763685,2.00997302,117860.0,117850.0,0.65196657]
[1758165763686,2.29906645,117860.0,117850.0,0.65196657]
[1758165765684,2.29902645,117860.0,117850.0,0.65196657]
[1758165765985,2.29902645,117860.0,117850.0,0.39526]
[1758165766185,2.29902645,117860.0,117850.0,0.65196657]
[1758165766386,2.29898645,117860.0,117850.0,0.65196657]
[1758165770381,2.31865646,117860.0,117850.0,0.65196657]
[1758165770582,2.57536303,117860.0,117850.0,0.39526]
[1758165771087,2.57536303,117860.0,117850.0,0.65196657]
[1758165771881,2.82536303,117860.0,117850.0,0.39526]
[1758165772689,2.82536303,117860.0,117850.0,0.37368]
[1758165773589,2.56865646,117860.0,117850.0,0.39526]
[1758165773788,2.82536303,117860.0,117850.0,0.37368]
[1758165775886,3.08211998,117860.0,117850.0,0.37368]
[1758165776086,1.58211998,117860.0,117850.0,0.37368]
[1758165777683,1.58211998,117860.0,117850.0,0.65199176]
[1758165778089,1.58211998,117860.0,117850.0,0.39526]
[1758165778389,1.58211998,117860.0,117850.0,0.65199176]
[1758165778783,1.58175998,117860.0,117850.0,0.65199176]
[1758165778985,1.58175998,117860.0,117850.0,0.39526]
[1758165779177,1.58175998,117860.0,117850.0,0.65199176]
[1758165779589,1.58175998,117860.0,117850.0,0.39526]
[1758165781080,1.58175998,117860.0,117850.0,0.37368]
[1758165782488,1.58175998,117860.0,117850.0,0.3955]
[1758165782689,0.78639998,117860.0,117850.0,0.65223176]
[1758165782889,0.02293646,117860.0,117850.0,0.65223176]
[1758165783296,1.07490822,117860.0,117850.0,0.65223176]
[1758165783792,1.33163998,117860.0,117850.0,0.3955]
[1758165783996,1.33163998,117860.0,117850.0,0.37368]
[1758165784392,0.81817646,117860.0,117850.0,0.37368]
[1758165784697,1.33163998,117860.0,117850.0,0.37368]
[1758165785496,1.33159998,117860.0,117850.0,0.37368]
[1758165785997,1.33159998,117860.0,117850.0,0.3955]
[1758165787100,0.53639998,117860.0,117850.0,0.3955]
[1758165787400,1.33151998,117860.0,117850.0,0.3955]
[1758165787794,0.53639998,117860.0,117850.0,0.3955]
[1758165787996,1.33151998,117860.0,117850.0,0.3955]
[1758165788197,0.02293646,117860.0,117850.0,0.65223176]
[1758165788400,1.33147998,117860.0,117850.0,0.3955]
[1758165788898,1.33147998,117860.0,117850.0,0.65223176]
[1758165790494,1.33143998,117860.0,117850.0,0.65223176]
[1758165790695,1.33143998,117860.0,117850.0,0.3955]
[1758165791602,1.33139998,117860.0,117850.0,0.3955]
[1758165791904,1.33139998,117860.0,117850.0,0.65223176]
[1758165793704,1.33139998,117860.0,117850.0,0.37368]
[1758165794898,1.33139998,117860.0,117850.0,0.3955]
[1758165796706,0.81773646,117860.0,117850.0,0.65223176]
[1758165796905,1.07446822,117860.0,117850.0,0.65223176]
[1758165797298,0.27966822,117860.0,117850.0,0.65223176]
[1758165797498,1.33115998,117860.0,117850.0,0.65223176]
[1758165797705,1.33115998,117860.0,117850.0,0.3955]
[1758165798106,1.33119995,117860.0,117850.0,0.3955]
[1758165799307,1.33119995,117860.0,117850.0,0.37368]
[1758165799703,1.58793171,117860.0,117840.0,0.37354]
[1758165799907,1.13099528,117850.0,117840.0,0.0001]
[1758165800104,1.1439735,117850.0,117830.0,0.0001]
[1758165800306,1.30814352,117840.0,117830.0,0.0001]
[1758165800502,1.3278535,117840.0,117820.0,0.39351024]
[1758165800702,0.25673176,117830.0,117820.0,0.39351024]
[1758165800899,0.51346352,117830.0,117820.0,0.39341024]
[1758165801606,0.51346352,117830.0,117820.0,0.41523024]
[1758165801805,0.25673176,117830.0,117820.0,0.05443024]
[1758165802008,0.25673176,117830.0,117820.0,0.671962]
[1758165802209,1.05133176,117830.0,117820.0,0.671962]
[1758165802404,0.32586714,117840.0,117830.0,0.03581]
[1758165802608,0.25683176,117850.0,117840.0,0.03581]
[1758165802807,0.81439223,117850.0,117840.0,0.65334176]
[1758165803003,0.81439223,117850.0,117840.0,0.90334176]
[1758165803004,1.07212399,117850.0,117840.0,0.90334176]
[1758165803205,1.05233176,117850.0,117840.0,0.90334176]
[1758165803413,1.05133176,117850.0,117840.0,0.90334176]
[1758165804015,1.05133176,117850.0,117840.0,0.64661]
[1758165804310,1.05233176,117850.0,117840.0,0.64661]
[1758165804503,1.07312044,117850.0,117840.0,0.64661]
[1758165804703,1.07312044,117850.0,117840.0,0.90334176]
[1758165807712,2.55333176,117850.0,117840.0,0.90334176]
[1758165808113,2.29648,117850.0,117840.0,1.16007352]
[1758165808314,2.55321176,117850.0,117840.0,0.90334176]
[1758165809716,2.55321176,117850.0,117840.0,0.64661]
[1758165809918,2.55321176,117850.0,117840.0,0.90334176]
[1758165810618,2.55321176,117850.0,117840.0,0.39661]
[1758165811011,2.57300172,117850.0,117840.0,0.39661]
[1758165811422,2.57300172,117850.0,117840.0,0.65334176]
[1758165812120,1.502,117850.0,117840.0,0.91007352]
[1758165812314,0.79624,117850.0,117840.0,0.91007352]
[1758165812921,0.7962,117850.0,117840.0,0.91007352]
[1758165813220,0.002,117850.0,117840.0,1.16007352]
[1758165815913,0.25873176,117850.0,117840.0,0.39661]
[1758165816113,0.25873176,117850.0,117840.0,0.91007352]
[1758165816316,0.25873176,117850.0,117840.0,0.39661]
[1758165816510,0.25873176,117850.0,117840.0,0.91007352]
[1758165816511,0.002,117850.0,117840.0,0.91007352]
[1758165818023,0.002,117850.0,117840.0,0.39661]
[1758165818024,0.02178569,117850.0,117840.0,0.39661]
[1758165818224,0.02178569,117850.0,117840.0,0.91007352]
[1758165819226,0.02178569,117850.0,117840.0,0.65334176]
[1758165819417,0.27851745,117850.0,117840.0,0.91007352]
[1758165819623,0.02178569,117850.0,117840.0,0.91007352]
[1758165819823,0.27851745,117850.0,117840.0,0.91007352]
[1758165820025,0.02178569,117850.0,117840.0,0.91007352]
[1758165820225,0.27851745,117850.0,117840.0,0.91007352]
[1758165820831,0.02178569,117850.0,117840.0,0.91007352]
[1758165821122,0.79592,117850.0,117840.0,0.91007352]
[1758165822423,0.002,117850.0,117840.0,0.91007352]
[1758165826228,0.002,117850.0,117840.0,0.91864187]
[1758165828132,0.002,117850.0,117840.0,0.91007352]
[1758165830439,0.002,117850.0,117840.0,0.9185597]
[1758165830633,0.002,117850.0,117840.0,1.0033755]
[1758165831135,0.002,117850.0,117840.0,0.9185597]
[1758165831340,0.002,117850.0,117840.0,1.70347352]
[1758165831535,0.002,117850.0,117840.0,1.71212197]
[1758165831737,0.002,117850.0,117840.0,2.04502108]
[1758165832243,0.002,117850.0,117840.0,1.78828932]
[1758165832942,0.002,117850.0,117840.0,1.79694285]
[1758165835444,0.002,117850.0,117840.0,2.05367461]
[1758165836346,0.002,117850.0,117840.0,2.62367461]
[1758165837744,0.002,117850.0,117840.0,2.36674771]
[1758165838450,0.002,117850.0,117840.0,2.28169191]
[1758165838650,0.002,117850.0,117840.0,1.48853191]
[1758165838949,0.002,117850.0,117840.0,2.28161191]
[1758165839849,0.002,117850.0,117840.0,1.76834353]
[1758165840050,0.002,117850.0,117840.0,2.28161191]
[1758165841251,0.002,117850.0,117840.0,1.76834353]
[1758165841454,0.002,117850.0,117840.0,2.28161191]
[1758165842050,0.002,117850.0,117840.0,1.48853191]
[1758165842351,0.002,117850.0,117840.0,2.28149191]
[1758165843149,0.002,117850.0,117840.0,2.36630801]
[1758165843350,0.002,117850.0,117840.0,2.28149191]
[1758165844752,0.002,117850.0,117840.0,2.36630801]
[1758165845256,0.00036645,117860.0,117850.0,0.29215419]
[1758165845449,0.02009452,117860.0,117850.0,0.73776309]
[1758165845656,0.00026645,117860.0,117850.0,0.73776309]
[1758165846750,0.00426645,117860.0,117850.0,0.73776309]
[1758165847052,0.02135,117870.0,117850.0,1.58776309]
[1758165847248,0.04117642,117870.0,117860.0,0.65295419]